[Event "Titled Tuesday Blitz November 14 Early 2023"]
[White "Ben Artzi, Ido"]
[Black "Tatarinov, Dmitry"]
[WhiteFideId "2810913"]
[BlackFideId "24160067"]
[WhiteElo "2552"]
[BlackElo "2795"]
[Result "0-1"]
[Round "8"]
[TimeControl "180+1"]
[Date "2023.11.14"]
[WhiteClock "0:00:05"]
[BlackClock "0:00:16"]
[Board "59"]

1. e4 {[%clk 0:02:57]}  c5 {[%clk 0:02:59]} 2. Nf3 {[%clk 0:02:57]}  e6 {[%clk 0:03:00]} 3. d4 {[%clk 0:02:56]}  cxd4 {[%clk 0:03:01]} 4. Nxd4 {[%clk 0:02:57]}  Nf6 {[%clk 0:03:01]} 5. Nc3 {[%clk 0:02:57]}  Nc6 {[%clk 0:03:01]} 6. Ndb5 {[%clk 0:02:57]}  Bc5 {[%clk 0:03:00]} 7. Bf4 {[%clk 0:02:56]}  O-O {[%clk 0:02:45]} 8. Bc7 {[%clk 0:02:56]}  Qe7 {[%clk 0:02:45]} 9. Bd6 {[%clk 0:02:56]}  Bxd6 {[%clk 0:02:46]} 10. Qxd6 {[%clk 0:02:57]}  Qd8 {[%clk 0:02:46]} 11. O-O-O {[%clk 0:02:52]}  a6 {[%clk 0:02:46]} 12. Nd4 {[%clk 0:02:48]}  Ne7 {[%clk 0:02:46]} 13. h4 {[%clk 0:02:46]}  b5 {[%clk 0:02:45]} 14. f3 {[%clk 0:02:42]}  Bb7 {[%clk 0:02:42]} 15. h5 {[%clk 0:02:40]}  h6 {[%clk 0:02:39]} 16. g4 {[%clk 0:02:37]}  Re8 {[%clk 0:02:26]} 17. Bd3 {[%clk 0:02:21]}  Qb8 {[%clk 0:02:22]} 18. Qxb8 {[%clk 0:01:46]}  Raxb8 {[%clk 0:02:21]} 19. Rdg1 {[%clk 0:01:40]}  b4 {[%clk 0:01:47]} 20. Nce2 {[%clk 0:01:34]}  a5 {[%clk 0:01:22]} 21. g5 {[%clk 0:01:34]}  hxg5 {[%clk 0:01:23]} 22. Rxg5 {[%clk 0:01:34]}  Kh8 {[%clk 0:01:22]} 23. Rxa5 {[%clk 0:01:34]}  d5 {[%clk 0:01:20]} 24. e5 {[%clk 0:01:33]}  Nd7 {[%clk 0:01:20]} 25. f4 {[%clk 0:01:32]}  Rec8 {[%clk 0:01:13]} 26. Kd2 {[%clk 0:01:31]}  Nc5 {[%clk 0:01:12]} 27. Rc1 {[%clk 0:01:25]}  Ne4+ {[%clk 0:01:11]} 28. Bxe4 {[%clk 0:00:59]}  dxe4 {[%clk 0:01:11]} 29. c4 {[%clk 0:00:56]}  bxc3+ {[%clk 0:01:10]} 30. Rxc3 {[%clk 0:00:54]}  Rd8 {[%clk 0:01:07]} 31. Kc1 {[%clk 0:00:38]}  Nd5 {[%clk 0:00:57]} 32. Rb3 {[%clk 0:00:37]}  Nxf4 {[%clk 0:00:50]} 33. Nxf4 {[%clk 0:00:20]}  Rxd4 {[%clk 0:00:49]} 34. Ra7 {[%clk 0:00:20]}  Rc8+ {[%clk 0:00:47]} 35. Rc3 {[%clk 0:00:21]}  Rb4 {[%clk 0:00:37]} 36. Rxc8+ {[%clk 0:00:19]}  Bxc8 {[%clk 0:00:38]} 37. Ra8 {[%clk 0:00:19]}  Rc4+ {[%clk 0:00:38]} 38. Kd2 {[%clk 0:00:19]}  Kh7 {[%clk 0:00:38]} 39. b3 {[%clk 0:00:18]}  Rc7 {[%clk 0:00:38]} 40. a4 {[%clk 0:00:17]}  Kh6 {[%clk 0:00:31]} 41. a5 {[%clk 0:00:16]}  Kg5 {[%clk 0:00:32]} 42. Ne2 {[%clk 0:00:14]}  Rd7+ {[%clk 0:00:28]} 43. Kc2 {[%clk 0:00:12]}  Bb7 {[%clk 0:00:25]} 44. Rb8 {[%clk 0:00:07]}  e3 {[%clk 0:00:24]} 45. b4 {[%clk 0:00:05]}  Be4+ {[%clk 0:00:20]} 46. Kc3 {[%clk 0:00:06]}  Rd3+ {[%clk 0:00:20]} 47. Kc4 {[%clk 0:00:06]}  Rd2 {[%clk 0:00:20]} 48. Nc3 {[%clk 0:00:05]}  Rc2 {[%clk 0:00:17]} 49. Kb3 {[%clk 0:00:03]}  e2 {[%clk 0:00:15]} 50. Nxe2 {[%clk 0:00:04]}  Rxe2 {[%clk 0:00:14]} 51. a6 {[%clk 0:00:04]}  Bd5+ {[%clk 0:00:11]} 52. Kc3 {[%clk 0:00:05]}  Re3+ {[%clk 0:00:11]} 53. Kd4 {[%clk 0:00:04]}  Re4+ {[%clk 0:00:12]} 54. Kc5 {[%clk 0:00:05]}  Rc4+ {[%clk 0:00:12]} 55. Kd6 {[%clk 0:00:05]}  Rc6+ {[%clk 0:00:12]} 56. Ke7 {[%clk 0:00:05]}  Rxa6 {[%clk 0:00:13]} 57. Kxf7 {[%clk 0:00:04]}  Kxh5 {[%clk 0:00:13]} 58. Kxg7 {[%clk 0:00:05]}  Kg5 {[%clk 0:00:14]} 59. b5 {[%clk 0:00:04]}  Ra2 {[%clk 0:00:13]} 60. b6 {[%clk 0:00:03]}  Kf5 {[%clk 0:00:14]} 61. b7 {[%clk 0:00:02]}  Rg2+ {[%clk 0:00:13]} 62. Kh7 {[%clk 0:00:01]}  Bxb7 {[%clk 0:00:10]} 63. Rxb7 {[%clk 0:00:02]}  Kxe5 {[%clk 0:00:11]} 64. Rb5+ {[%clk 0:00:02]}  Kf4 {[%clk 0:00:11]} 65. Kh6 {[%clk 0:00:02]}  e5 {[%clk 0:00:12]} 66. Kh5 {[%clk 0:00:02]}  e4 {[%clk 0:00:12]} 67. Kh4 {[%clk 0:00:03]}  e3 {[%clk 0:00:12]} 68. Kh3 {[%clk 0:00:04]}  Rg8 {[%clk 0:00:12]} 69. Rb7 {[%clk 0:00:03]}  Kf3 {[%clk 0:00:12]} 70. Rf7+ {[%clk 0:00:03]}  Ke2 {[%clk 0:00:13]} 71. Kh2 {[%clk 0:00:03]}  Kd2 {[%clk 0:00:13]} 72. Rd7+ {[%clk 0:00:03]}  Ke1 {[%clk 0:00:14]} 73. Re7 {[%clk 0:00:04]}  e2 {[%clk 0:00:15]} 74. Ra7 {[%clk 0:00:04]}  Rg4 {[%clk 0:00:15]} 75. Ra1+ {[%clk 0:00:04]}  Kd2 {[%clk 0:00:15]} 76. Ra2+ {[%clk 0:00:04]}  Ke3 {[%clk 0:00:15]} 77. Ra3+ {[%clk 0:00:05]}  Kf2 {[%clk 0:00:16]} 78. Ra2 {[%clk 0:00:05]}  Rh4# {[%clk 0:00:16]} 0-1


[Site "https://www.chess.com"]

[Event "Titled Tuesday Blitz November 14 Early 2023"]
[White "ChainedDowntohell"]
[Black "Gharibyan, Mamikon"]
[BlackFideId "13308300"]
[WhiteElo "2553"]
[BlackElo "2789"]
[Result "0-1"]
[Round "8"]
[TimeControl "180+1"]
[Date "2023.11.14"]
[WhiteClock "0:00:00"]
[BlackClock "0:00:14"]
[Board "60"]

1. d4 {[%clk 0:03:00]}  Nf6 {[%clk 0:02:58]} 2. c4 {[%clk 0:03:00]}  e6 {[%clk 0:02:59]} 3. Nf3 {[%clk 0:03:00]}  d5 {[%clk 0:02:59]} 4. Nc3 {[%clk 0:03:00]}  Nbd7 {[%clk 0:03:00]} 5. cxd5 {[%clk 0:02:57]}  exd5 {[%clk 0:03:00]} 6. Bg5 {[%clk 0:02:57]}  Bb4 {[%clk 0:02:57]} 7. e3 {[%clk 0:02:56]}  h6 {[%clk 0:02:57]} 8. Bh4 {[%clk 0:02:54]}  g5 {[%clk 0:02:56]} 9. Bg3 {[%clk 0:02:54]}  Ne4 {[%clk 0:02:57]} 10. Qb3 {[%clk 0:02:38]}  c5 {[%clk 0:02:56]} 11. Bb5 {[%clk 0:02:32]}  Bxc3+ {[%clk 0:02:35]} 12. bxc3 {[%clk 0:02:30]}  c4 {[%clk 0:02:36]} 13. Qb4 {[%clk 0:02:13]}  Qe7 {[%clk 0:02:21]} 14. Bxd7+ {[%clk 0:01:47]}  Bxd7 {[%clk 0:01:58]} 15. Qxb7 {[%clk 0:01:44]}  O-O {[%clk 0:01:58]} 16. Qxd5 {[%clk 0:01:19]}  Nxc3 {[%clk 0:01:56]} 17. Qd6 {[%clk 0:01:13]}  Qxd6 {[%clk 0:01:49]} 18. Bxd6 {[%clk 0:01:14]}  Rfc8 {[%clk 0:01:50]} 19. Ne5 {[%clk 0:01:09]}  Be6 {[%clk 0:01:44]} 20. Bb4 {[%clk 0:00:38]}  Na4 {[%clk 0:01:06]} 21. e4 {[%clk 0:00:31]}  f6 {[%clk 0:01:04]} 22. Nf3 {[%clk 0:00:28]}  c3 {[%clk 0:00:50]} 23. d5 {[%clk 0:00:26]}  Rc4 {[%clk 0:00:49]} 24. O-O {[%clk 0:00:13]}  Bd7 {[%clk 0:00:45]} 25. Ba3 {[%clk 0:00:06]}  Rxe4 {[%clk 0:00:45]} 26. Rab1 {[%clk 0:00:05]}  Nb6 {[%clk 0:00:44]} 27. Rfe1 {[%clk 0:00:03]}  Rxe1+ {[%clk 0:00:39]} 28. Rxe1 {[%clk 0:00:03]}  Nxd5 {[%clk 0:00:39]} 29. Nd4 {[%clk 0:00:04]}  Rc8 {[%clk 0:00:37]} 30. f3 {[%clk 0:00:04]}  Rc4 {[%clk 0:00:33]} 31. Nc2 {[%clk 0:00:03]}  Bf5 {[%clk 0:00:30]} 32. Re2 {[%clk 0:00:02]}  Bd3 {[%clk 0:00:26]} 33. Rf2 {[%clk 0:00:02]}  Ra4 {[%clk 0:00:24]} 34. Bc1 {[%clk 0:00:02]}  Rxa2 {[%clk 0:00:21]} 35. Ne1 {[%clk 0:00:02]}  Be2 {[%clk 0:00:21]} 36. g3 {[%clk 0:00:02]}  f5 {[%clk 0:00:20]} 37. Kg2 {[%clk 0:00:02]}  Kf7 {[%clk 0:00:18]} 38. Nd3 {[%clk 0:00:02]}  Rc2 {[%clk 0:00:14]} 39. Nb4 {[%clk 0:00:02]}  Nxb4 {[%clk 0:00:14]} 40. Ba3 {[%clk 0:00:00]}  Nd3 {[%clk 0:00:14]} 0-1


[Site "https://www.chess.com"]

[Event "Titled Tuesday Blitz November 14 Early 2023"]
[White "TomLiu777"]
[Black "Hayrapetyan, Hovik"]
[BlackFideId "13302639"]
[WhiteElo "2542"]
[BlackElo "2727"]
[Result "0-1"]
[Round "8"]
[TimeControl "180+1"]
[Date "2023.11.14"]
[WhiteClock "0:00:05"]
[BlackClock "0:00:05"]
[Board "63"]

1. c4 {[%clk 0:03:00]}  e6 {[%clk 0:02:59]} 2. Nc3 {[%clk 0:02:52]}  d5 {[%clk 0:02:57]} 3. d4 {[%clk 0:02:46]}  Nf6 {[%clk 0:02:56]} 4. Bg5 {[%clk 0:02:43]}  Bb4 {[%clk 0:02:27]} 5. cxd5 {[%clk 0:02:40]}  exd5 {[%clk 0:02:12]} 6. Nf3 {[%clk 0:02:36]}  h6 {[%clk 0:02:11]} 7. Bh4 {[%clk 0:02:30]}  O-O {[%clk 0:02:05]} 8. e3 {[%clk 0:02:21]}  Bf5 {[%clk 0:02:00]} 9. Bd3 {[%clk 0:02:19]}  Bxd3 {[%clk 0:02:00]} 10. Qxd3 {[%clk 0:02:20]}  c6 {[%clk 0:01:53]} 11. O-O {[%clk 0:02:20]}  Nbd7 {[%clk 0:01:53]} 12. Ne5 {[%clk 0:02:19]}  Qe8 {[%clk 0:01:40]} 13. f4 {[%clk 0:02:01]}  Bxc3 {[%clk 0:01:39]} 14. bxc3 {[%clk 0:01:58]}  Ne4 {[%clk 0:01:35]} 15. c4 {[%clk 0:01:50]}  f6 {[%clk 0:01:34]} 16. cxd5 {[%clk 0:01:47]}  cxd5 {[%clk 0:01:34]} 17. Qb3 {[%clk 0:01:33]}  Nb6 {[%clk 0:01:26]} 18. Nf3 {[%clk 0:01:27]}  Rc8 {[%clk 0:01:22]} 19. Rac1 {[%clk 0:01:26]}  Qd7 {[%clk 0:01:07]} 20. Bf2 {[%clk 0:01:06]}  Nc4 {[%clk 0:01:02]} 21. Rfd1 {[%clk 0:01:01]}  Rfe8 {[%clk 0:00:58]} 22. Be1 {[%clk 0:00:52]}  b5 {[%clk 0:00:53]} 23. h3 {[%clk 0:00:40]}  a5 {[%clk 0:00:52]} 24. Bf2 {[%clk 0:00:25]}  Nxf2 {[%clk 0:00:37]} 25. Kxf2 {[%clk 0:00:25]}  Rxe3 {[%clk 0:00:36]} 26. Qb1 {[%clk 0:00:25]}  Rce8 {[%clk 0:00:35]} 27. Qg6 {[%clk 0:00:19]}  Qf7 {[%clk 0:00:14]} 28. Qxf7+ {[%clk 0:00:16]}  Kxf7 {[%clk 0:00:15]} 29. Ne5+ {[%clk 0:00:15]}  fxe5 {[%clk 0:00:11]} 30. Rxc4 {[%clk 0:00:16]}  dxc4 {[%clk 0:00:05]} 31. Kxe3 {[%clk 0:00:15]}  exf4+ {[%clk 0:00:06]} 32. Kxf4 {[%clk 0:00:15]}  Ke6 {[%clk 0:00:06]} 33. Re1+ {[%clk 0:00:11]}  Kd7 {[%clk 0:00:06]} 34. Rb1 {[%clk 0:00:10]}  b4 {[%clk 0:00:06]} 35. a3 {[%clk 0:00:10]}  b3 {[%clk 0:00:06]} 36. Rc1 {[%clk 0:00:09]}  Rc8 {[%clk 0:00:06]} 37. Ke4 {[%clk 0:00:08]}  c3 {[%clk 0:00:05]} 38. Rf1 {[%clk 0:00:05]}  c2 {[%clk 0:00:05]} 0-1


[Site "https://www.chess.com"]

[Event "Titled Tuesday Blitz November 14 Early 2023"]
[White "Novik, Maxim"]
[Black "Krivonosov, Oleg"]
[WhiteFideId "4102924"]
[BlackFideId "11600349"]
[WhiteElo "2538"]
[BlackElo "2708"]
[Result "1/2-1/2"]
[Round "8"]
[TimeControl "180+1"]
[Date "2023.11.14"]
[WhiteClock "0:01:39"]
[BlackClock "0:01:12"]
[Board "65"]

1. e4 {[%clk 0:03:00]}  e5 {[%clk 0:02:58]} 2. Nf3 {[%clk 0:02:58]}  Nc6 {[%clk 0:02:58]} 3. Bc4 {[%clk 0:02:58]}  Bc5 {[%clk 0:02:57]} 4. d3 {[%clk 0:02:58]}  d6 {[%clk 0:02:55]} 5. O-O {[%clk 0:02:58]}  Nf6 {[%clk 0:02:53]} 6. Bg5 {[%clk 0:02:54]}  h6 {[%clk 0:02:52]} 7. Bxf6 {[%clk 0:02:53]}  Qxf6 {[%clk 0:02:50]} 8. Nc3 {[%clk 0:02:54]}  Be6 {[%clk 0:02:46]} 9. Nd5 {[%clk 0:02:52]}  Qd8 {[%clk 0:02:43]} 10. c3 {[%clk 0:02:51]}  O-O {[%clk 0:02:41]} 11. b4 {[%clk 0:02:50]}  Bb6 {[%clk 0:02:40]} 12. a4 {[%clk 0:02:50]}  a6 {[%clk 0:02:35]} 13. Nxb6 {[%clk 0:02:49]}  cxb6 {[%clk 0:02:34]} 14. Bxe6 {[%clk 0:02:47]}  fxe6 {[%clk 0:02:35]} 15. Qb3 {[%clk 0:02:47]}  Qd7 {[%clk 0:02:30]} 16. Rfe1 {[%clk 0:02:46]}  Ne7 {[%clk 0:02:25]} 17. Nd2 {[%clk 0:02:41]}  b5 {[%clk 0:02:14]} 18. axb5 {[%clk 0:02:38]}  axb5 {[%clk 0:02:13]} 19. d4 {[%clk 0:02:32]}  Ng6 {[%clk 0:02:11]} 20. Nf1 {[%clk 0:02:30]}  Qf7 {[%clk 0:02:03]} 21. f3 {[%clk 0:02:28]}  exd4 {[%clk 0:01:59]} 22. cxd4 {[%clk 0:02:25]}  e5 {[%clk 0:01:59]} 23. Qxf7+ {[%clk 0:02:24]}  Kxf7 {[%clk 0:01:59]} 24. d5 {[%clk 0:02:20]}  Nf4 {[%clk 0:01:54]} 25. Ne3 {[%clk 0:02:18]}  Ra4 {[%clk 0:01:46]} 26. Rac1 {[%clk 0:02:06]}  Rxb4 {[%clk 0:01:25]} 27. Rc7+ {[%clk 0:02:05]}  Kg8 {[%clk 0:01:25]} 28. Nf5 {[%clk 0:02:03]}  Rb2 {[%clk 0:01:17]} 29. Rxg7+ {[%clk 0:02:01]}  Kh8 {[%clk 0:01:17]} 30. Rg4 {[%clk 0:01:56]}  Rg8 {[%clk 0:01:10]} 31. Rxg8+ {[%clk 0:01:44]}  Kxg8 {[%clk 0:01:11]} 32. g3 {[%clk 0:01:42]}  Nh3+ {[%clk 0:01:10]} 33. Kh1 {[%clk 0:01:41]}  Nf2+ {[%clk 0:01:11]} 34. Kg1 {[%clk 0:01:38]}  Nh3+ {[%clk 0:01:11]} 35. Kh1 {[%clk 0:01:38]}  Nf2+ {[%clk 0:01:12]} 36. Kg1 {[%clk 0:01:39]}  Nh3+ {[%clk 0:01:12]} 1/2-1/2


[Site "https://www.chess.com"]

[Event "Titled Tuesday Blitz November 14 Early 2023"]
[White "Ilkhomi, Jaloliddin"]
[Black "vishwa_vijeta"]
[WhiteFideId "14700948"]
[WhiteElo "2700"]
[BlackElo "2535"]
[Result "1-0"]
[Round "8"]
[TimeControl "180+1"]
[Date "2023.11.14"]
[WhiteClock "0:00:08"]
[BlackClock "0:00:33"]
[Board "67"]

1. Nf3 {[%clk 0:02:59]}  c5 {[%clk 0:02:59]} 2. c3 {[%clk 0:02:57]}  d5 {[%clk 0:02:57]} 3. d4 {[%clk 0:02:57]}  cxd4 {[%clk 0:02:57]} 4. cxd4 {[%clk 0:02:58]}  g6 {[%clk 0:02:57]} 5. Nc3 {[%clk 0:02:58]}  Nc6 {[%clk 0:02:57]} 6. Bf4 {[%clk 0:02:59]}  Bg7 {[%clk 0:02:57]} 7. e3 {[%clk 0:02:55]}  a6 {[%clk 0:02:57]} 8. Bd3 {[%clk 0:02:55]}  Nf6 {[%clk 0:02:55]} 9. O-O {[%clk 0:02:54]}  h6 {[%clk 0:02:55]} 10. Ne5 {[%clk 0:02:54]}  O-O {[%clk 0:02:51]} 11. Qf3 {[%clk 0:02:52]}  e6 {[%clk 0:02:45]} 12. Nxc6 {[%clk 0:02:47]}  bxc6 {[%clk 0:02:46]} 13. Rac1 {[%clk 0:02:47]}  Nd7 {[%clk 0:02:43]} 14. Na4 {[%clk 0:02:43]}  Bb7 {[%clk 0:02:38]} 15. Bd6 {[%clk 0:02:19]}  Re8 {[%clk 0:02:36]} 16. Nc5 {[%clk 0:02:19]}  Nxc5 {[%clk 0:02:33]} 17. Bxc5 {[%clk 0:02:15]}  e5 {[%clk 0:02:34]} 18. dxe5 {[%clk 0:02:11]}  Bxe5 {[%clk 0:02:34]} 19. Qh3 {[%clk 0:02:09]}  Bg7 {[%clk 0:02:28]} 20. Rcd1 {[%clk 0:02:02]}  Bc8 {[%clk 0:02:26]} 21. Qg3 {[%clk 0:01:59]}  Qa5 {[%clk 0:02:20]} 22. Bd4 {[%clk 0:01:55]}  Bxd4 {[%clk 0:02:16]} 23. exd4 {[%clk 0:01:55]}  Kg7 {[%clk 0:02:13]} 24. f4 {[%clk 0:01:27]}  Qb6 {[%clk 0:02:10]} 25. Kh1 {[%clk 0:01:24]}  Qc7 {[%clk 0:01:36]} 26. Qh4 {[%clk 0:01:14]}  Rb8 {[%clk 0:01:29]} 27. f5 {[%clk 0:01:12]}  gxf5 {[%clk 0:01:26]} 28. Bxf5 {[%clk 0:01:09]}  Bxf5 {[%clk 0:01:24]} 29. Rxf5 {[%clk 0:01:10]}  Re6 {[%clk 0:01:24]} 30. Rdf1 {[%clk 0:01:10]}  Rxb2 {[%clk 0:01:21]} 31. Qg4+ {[%clk 0:00:42]}  Rg6 {[%clk 0:01:20]} 32. Qf3 {[%clk 0:00:41]}  Rb7 {[%clk 0:01:12]} 33. Rf6 {[%clk 0:00:41]}  Qe7 {[%clk 0:01:11]} 34. Rxg6+ {[%clk 0:00:37]}  fxg6 {[%clk 0:01:10]} 35. a4 {[%clk 0:00:37]}  Rd7 {[%clk 0:01:09]} 36. a5 {[%clk 0:00:34]}  Rd6 {[%clk 0:01:05]} 37. Qa3 {[%clk 0:00:33]}  Qd7 {[%clk 0:01:02]} 38. h3 {[%clk 0:00:28]}  Rf6 {[%clk 0:00:58]} 39. Rxf6 {[%clk 0:00:28]}  Kxf6 {[%clk 0:00:59]} 40. Qf8+ {[%clk 0:00:29]}  Kg5 {[%clk 0:00:59]} 41. Kh2 {[%clk 0:00:23]}  Qc7+ {[%clk 0:00:58]} 42. g3 {[%clk 0:00:23]}  c5 {[%clk 0:00:50]} 43. Kg2 {[%clk 0:00:06]}  cxd4 {[%clk 0:00:47]} 44. h4+ {[%clk 0:00:07]}  Kg4 {[%clk 0:00:33]} 45. Qf3# {[%clk 0:00:08]} 1-0


[Site "https://www.chess.com"]

[Event "Titled Tuesday Blitz November 14 Early 2023"]
[White "Toktomushev, Teimur"]
[Black "Skliarov, Viktor"]
[WhiteFideId "14176726"]
[BlackFideId "14106736"]
[WhiteElo "2531"]
[BlackElo "2670"]
[Result "1/2-1/2"]
[Round "8"]
[TimeControl "180+1"]
[Date "2023.11.14"]
[WhiteClock "0:00:02"]
[BlackClock "0:00:08"]
[Board "71"]

1. d4 {[%clk 0:03:00]}  Nf6 {[%clk 0:02:59]} 2. c4 {[%clk 0:03:00]}  e6 {[%clk 0:02:59]} 3. Nf3 {[%clk 0:03:00]}  c5 {[%clk 0:02:58]} 4. d5 {[%clk 0:03:00]}  exd5 {[%clk 0:02:58]} 5. cxd5 {[%clk 0:03:01]}  d6 {[%clk 0:02:59]} 6. Nc3 {[%clk 0:03:01]}  g6 {[%clk 0:03:00]} 7. Nd2 {[%clk 0:03:02]}  Bg7 {[%clk 0:02:59]} 8. e4 {[%clk 0:03:02]}  O-O {[%clk 0:02:59]} 9. Be2 {[%clk 0:03:03]}  a6 {[%clk 0:02:58]} 10. a4 {[%clk 0:03:03]}  Nbd7 {[%clk 0:02:58]} 11. O-O {[%clk 0:03:04]}  Re8 {[%clk 0:02:59]} 12. Re1 {[%clk 0:03:04]}  h5 {[%clk 0:02:57]} 13. h3 {[%clk 0:03:03]}  h4 {[%clk 0:02:48]} 14. a5 {[%clk 0:02:56]}  b5 {[%clk 0:02:45]} 15. axb6 {[%clk 0:02:50]}  Nxb6 {[%clk 0:02:42]} 16. Bf1 {[%clk 0:02:28]}  Nfd7 {[%clk 0:02:18]} 17. Nb3 {[%clk 0:02:16]}  c4 {[%clk 0:01:48]} 18. Na5 {[%clk 0:01:37]}  Qc7 {[%clk 0:01:39]} 19. Bg5 {[%clk 0:01:23]}  Bf6 {[%clk 0:01:35]} 20. Qd2 {[%clk 0:01:04]}  Kg7 {[%clk 0:01:18]} 21. Bxf6+ {[%clk 0:00:34]}  Nxf6 {[%clk 0:01:18]} 22. Qd4 {[%clk 0:00:27]}  Bd7 {[%clk 0:01:17]} 23. Nxc4 {[%clk 0:00:18]}  Nxc4 {[%clk 0:01:17]} 24. Bxc4 {[%clk 0:00:18]}  Rab8 {[%clk 0:01:13]} 25. b3 {[%clk 0:00:17]}  a5 {[%clk 0:01:03]} 26. f4 {[%clk 0:00:10]}  Qb6 {[%clk 0:00:47]} 27. Qxb6 {[%clk 0:00:10]}  Rxb6 {[%clk 0:00:48]} 28. e5 {[%clk 0:00:07]}  Nh5 {[%clk 0:00:46]} 29. e6 {[%clk 0:00:04]}  Bc8 {[%clk 0:00:39]} 30. Rxa5 {[%clk 0:00:02]}  Nxf4 {[%clk 0:00:37]} 31. Ra7 {[%clk 0:00:02]}  Rb7 {[%clk 0:00:35]} 32. Rxb7 {[%clk 0:00:03]}  Bxb7 {[%clk 0:00:36]} 33. Nb5 {[%clk 0:00:03]}  Bxd5 {[%clk 0:00:32]} 34. Bxd5 {[%clk 0:00:01]}  Nxd5 {[%clk 0:00:32]} 35. Nxd6 {[%clk 0:00:01]}  Rxe6 {[%clk 0:00:33]} 36. Rxe6 {[%clk 0:00:01]}  fxe6 {[%clk 0:00:34]} 37. Ne4 {[%clk 0:00:01]}  Kh6 {[%clk 0:00:18]} 38. Kf2 {[%clk 0:00:02]}  g5 {[%clk 0:00:19]} 39. Kf3 {[%clk 0:00:02]}  Kg6 {[%clk 0:00:19]} 40. Nd6 {[%clk 0:00:01]}  Kf6 {[%clk 0:00:18]} 41. Nc4 {[%clk 0:00:02]}  Nb4 {[%clk 0:00:13]} 42. Ne3 {[%clk 0:00:01]}  Ke5 {[%clk 0:00:12]} 43. Kg4 {[%clk 0:00:01]}  Kf6 {[%clk 0:00:13]} 44. Nf1 {[%clk 0:00:02]}  Nd5 {[%clk 0:00:12]} 45. Nd2 {[%clk 0:00:02]}  Ne3+ {[%clk 0:00:11]} 46. Kf3 {[%clk 0:00:03]}  Nd5 {[%clk 0:00:12]} 47. Ne4+ {[%clk 0:00:03]}  Kf5 {[%clk 0:00:12]} 48. Nd6+ {[%clk 0:00:03]}  Ke5 {[%clk 0:00:11]} 49. Nf7+ {[%clk 0:00:02]}  Kf6 {[%clk 0:00:10]} 50. Nd8 {[%clk 0:00:03]}  Kf5 {[%clk 0:00:09]} 51. Nc6 {[%clk 0:00:03]}  e5 {[%clk 0:00:09]} 52. b4 {[%clk 0:00:02]}  e4+ {[%clk 0:00:10]} 53. Kf2 {[%clk 0:00:02]}  g4 {[%clk 0:00:10]} 54. hxg4+ {[%clk 0:00:01]}  Kxg4 {[%clk 0:00:10]} 55. b5 {[%clk 0:00:02]}  e3+ {[%clk 0:00:09]} 56. Ke2 {[%clk 0:00:02]}  Kg3 {[%clk 0:00:10]} 57. Ne5 {[%clk 0:00:01]}  Kxg2 {[%clk 0:00:09]} 58. Ng6 {[%clk 0:00:01]}  h3 {[%clk 0:00:09]} 59. b6 {[%clk 0:00:02]}  Nxb6 {[%clk 0:00:08]} 60. Nf4+ {[%clk 0:00:02]}  Kg3 {[%clk 0:00:08]} 61. Nxh3 {[%clk 0:00:02]}  Kxh3 {[%clk 0:00:08]} 62. Kxe3 {[%clk 0:00:02]} 1/2-1/2


[Site "https://www.chess.com"]

[Event "Titled Tuesday Blitz November 14 Early 2023"]
[White "Molenda, Marcin"]
[Black "Ovetchkin, Roman"]
[WhiteFideId "1173065"]
[BlackFideId "4119991"]
[WhiteElo "2530"]
[BlackElo "2665"]
[Result "0-1"]
[Round "8"]
[TimeControl "180+1"]
[Date "2023.11.14"]
[WhiteClock "0:00:00"]
[BlackClock "0:00:10"]
[Board "72"]

1. e4 {[%clk 0:03:00]}  c6 {[%clk 0:02:59]} 2. d4 {[%clk 0:02:54]}  d5 {[%clk 0:03:00]} 3. e5 {[%clk 0:02:55]}  Bf5 {[%clk 0:03:00]} 4. Nf3 {[%clk 0:02:55]}  e6 {[%clk 0:03:00]} 5. Be2 {[%clk 0:02:56]}  Ne7 {[%clk 0:02:59]} 6. O-O {[%clk 0:02:56]}  Nc8 {[%clk 0:02:59]} 7. Nbd2 {[%clk 0:02:56]}  Be7 {[%clk 0:02:59]} 8. a4 {[%clk 0:02:57]}  O-O {[%clk 0:02:54]} 9. a5 {[%clk 0:02:57]}  a6 {[%clk 0:02:35]} 10. Re1 {[%clk 0:02:51]}  Na7 {[%clk 0:02:32]} 11. c3 {[%clk 0:02:50]}  c5 {[%clk 0:02:32]} 12. Nf1 {[%clk 0:02:42]}  Nbc6 {[%clk 0:02:23]} 13. dxc5 {[%clk 0:02:35]}  Bxc5 {[%clk 0:02:21]} 14. b4 {[%clk 0:02:34]}  Be7 {[%clk 0:02:20]} 15. Be3 {[%clk 0:02:33]}  Rc8 {[%clk 0:02:16]} 16. Qd2 {[%clk 0:02:15]}  Qc7 {[%clk 0:02:06]} 17. Bb6 {[%clk 0:02:12]}  Qb8 {[%clk 0:02:06]} 18. Ng3 {[%clk 0:01:53]}  Bg4 {[%clk 0:01:51]} 19. h3 {[%clk 0:01:50]}  Bxf3 {[%clk 0:01:50]} 20. Bxf3 {[%clk 0:01:50]}  Nb5 {[%clk 0:01:51]} 21. Qe3 {[%clk 0:01:38]}  d4 {[%clk 0:01:15]} 22. cxd4 {[%clk 0:01:33]}  Nxb4 {[%clk 0:01:15]} 23. Qe4 {[%clk 0:00:45]}  Nd5 {[%clk 0:01:12]} 24. Nh5 {[%clk 0:00:42]}  g6 {[%clk 0:01:06]} 25. Nf4 {[%clk 0:00:32]}  Nbc3 {[%clk 0:00:54]} 26. Nxd5 {[%clk 0:00:29]}  Nxd5 {[%clk 0:00:51]} 27. Rac1 {[%clk 0:00:23]}  Rxc1 {[%clk 0:00:50]} 28. Rxc1 {[%clk 0:00:24]}  Rc8 {[%clk 0:00:50]} 29. Qb1 {[%clk 0:00:21]}  Nxb6 {[%clk 0:00:38]} 30. axb6 {[%clk 0:00:20]}  Bd8 {[%clk 0:00:31]} 31. Rxc8 {[%clk 0:00:09]}  Qxc8 {[%clk 0:00:31]} 32. d5 {[%clk 0:00:09]}  exd5 {[%clk 0:00:30]} 33. Bxd5 {[%clk 0:00:10]}  Qc5 {[%clk 0:00:30]} 34. Qb3 {[%clk 0:00:09]}  Bxb6 {[%clk 0:00:29]} 35. Qf3 {[%clk 0:00:07]}  Qe7 {[%clk 0:00:24]} 36. Bxb7 {[%clk 0:00:03]}  a5 {[%clk 0:00:24]} 37. Bd5 {[%clk 0:00:03]}  Kg7 {[%clk 0:00:23]} 38. Qe4 {[%clk 0:00:03]}  Qc5 {[%clk 0:00:11]} 39. Qf3 {[%clk 0:00:02]}  Qe7 {[%clk 0:00:11]} 40. Qe4 {[%clk 0:00:02]}  Bc5 {[%clk 0:00:11]} 41. Kf1 {[%clk 0:00:00]}  Qa7 {[%clk 0:00:10]} 0-1


[Site "https://www.chess.com"]